Cogmind - Beta 13 @@@ ROGUE MODE // 2024.07.15 @ 22:45:32 Player: Sgt. SmokeWeed Result: Destroyed by as-19097 with Assembled Rifle Performance ------------- Evolutions (0) 0 Regions Visited (4) 800 Robots Destroyed (1) 5 Value Destroyed (10) 10 Prototype IDs (25) 500 Alien Tech Used (0) 0 Bonus (132) 132 TOTAL SCORE: 1447 Bonus ------- Aligned with FarCom 300 Friendly Fire -168 Cogmind --------- Core Integrity 0/250 Matter 267/300 Energy 99/100 System Corruption 0% Temperature Cool (0) Movement Core (50) Location -9/Mines Parts ------- > --- POWER (1) -------- (None) > --- PROPULSION (2) --- (None) > --- UTILITY (2) ------ (None) > --- WEAPON (2) ------- (None) > --- INVENTORY (5) ---- Assault Rifle XL Autogun Array Peak State ------------ > --- POWER ------------ Ion Engine > --- PROPULSION ------- Aluminum Leg Aluminum Leg > --- UTILITY ---------- (None) > --- WEAPON ----------- Assault Rifle Grenade Launcher > --- INVENTORY -------- Assault Rifle XL Autogun Array [Rating: 8] Favorites ----------- Power Ion Engine Engine Ion Engine Propulsion Aluminum Leg Leg Aluminum Leg Utility None Weapon Assault Rifle Ballistic Gun Assault Rifle Launcher Grenade Launcher Build | -11 -10 -10 -10 -9 ------- Run | Yrd Mat Min Exi Min Slots Evolved . | . . . . . Power . | . . . . . Propulsion . | . . . . . Utility . | . . . . . Weapon . | . . . . . Parts Attached 6 | 5 1 . . . Power 1 | 1 . . . . Engine 1 | 1 . . . . Core . | . . . . . Reactor . | . . . . . Propulsion 2 | 2 . . . . Treads . | . . . . . Leg 2 | 2 . . . . Wheel . | . . . . . Hover . | . . . . . Flight . | . . . . . Utility . | . . . . . Device . | . . . . . Storage . | . . . . . Processor . | . . . . . Hackware . | . . . . . Protection . | . . . . . Artifact . | . . . . . Weapon 3 | 2 1 . . . Energy Gun . | . . . . . Energy Cannon . | . . . . . Ballistic Gun 2 | 2 . . . . Ballistic Cannon . | . . . . . Launcher 1 | . 1 . . . Special Weapon . | . . . . . Impact Weapon . | . . . . . Slashing Weapon . | . . . . . Piercing Weapon . | . . . . . Special Melee Weapon . | . . . . . Unidentified Prototypes . | . . . . . Parts Lost 5 | . . . . 5 Power 1 | . . . . 1 Propulsion 2 | . . . . 2 Utility . | . . . . . Weapon 2 | . . . . 2 Highest Loss Streak 5 | . . . . 5 To Critical Strikes . | . . . . . Average Slot Usage (%) 68 | . 71 71 71 59 Engine 13 | . 14 14 14 12 Leg 27 | . 28 28 28 25 Ballistic Gun 15 | . 22 14 14 11 Launcher 11 | . 5 14 14 9 Naked Turns 12 | . . . . 12 Heaviest Build 10 | 9 10 10 10 10 Greatest Support 20 | 20 20 20 20 20 Greatest Overweight (x) . | . . . . . Average Overweight (x) . | . . . . . Largest Inventory Capacity 5 | 5 5 5 5 5 Average Capacity 5 | 5 5 5 5 5 Most Carried 5 | . 1 1 5 5 Average Carried . | . . 1 2 5 Final Capacity 5 | 5 5 5 5 5 Final Carried 5 | . 1 1 5 5 Class Distribution -------------------- 100% | Mutant Dominant Class ---------------- Mutant | -10/Materials Mutant | -10/Mines Mutant | -10/Exiles Mutant | -9/Mines Resources | -11 -10 -10 -10 -9 ----------- Run | Yrd Mat Min Exi Min Matter Collected 273 | 250 . . . 23 Remotely . | . . . . . Salvage Created 52 | . . . . 52 Parts . | . . . . . Haulers Intercepted . | . . . . . Recyclers Shooed . | . . . . . Parts Field Recycled . | . . . . . Retrieved Matter . | . . . . . Parts Self-Destructed . | . . . . . Prevented . | . . . . . Kills | -11 -10 -10 -10 -9 ------- Run | Yrd Mat Min Exi Min Combat Hostiles Destroyed 5 | . . . . 5 Guns 2 | . . . . 2 AOE 3 | . . . . 3 Classes Destroyed 2 | . . . . 2 Assembled 5 | . . . . 5 Guerrilla 1 | . . . . 1 Best Kill Streak 5 | . . . . 5 Combat Bots Only 5 | . . . . 5 Max Kills in Single Turn 2 | . . . . 2 Gunslinging . | . . . . . Exploded 1 | . . . . 1 Melee . | . . . . . Uniques/NPCs Destroyed . | . . . . . Combat | -11 -10 -10 -10 -9 -------- Run | Yrd Mat Min Exi Min Hostile Shots Fired 60 | . . . . 60 Missed 21 | . . . . 21 Damage Taken 669 | . . . . 669 Core 258 | . . . . 258 Absorbed by Shields . | . . . . . Core Remaining (%) 100 | 100 . . . . Volleys Fired 10 | . 3 . . 7 Largest 2 | . 2 . . 2 Hottest 50 | . 40 . . 50 Shots Fired 18 | . 6 . . 12 Gun 13 | . 6 . . 7 Cannon . | . . . . . Launcher 5 | . . . . 5 Special . | . . . . . Kinetic 13 | . 6 . . 7 Thermal . | . . . . . Explosive 5 | . . . . 5 Electromagnetic . | . . . . . Robot Hit Streak 3 | . 1 . . 3 Robot Miss Streak 3 | . 3 . . 2 Penetration Max . | . . . . . Secondary Targets . | . . . . . Shots Hit Robots 6 | . 1 . . 5 Core Hits 15 | . . . . 15 Critical Kills . | . . . . . Critical Parts Destroyed . | . . . . . Critical Strikes . | . . . . . Melee Attacks . | . . . . . Impact . | . . . . . Slashing . | . . . . . Piercing . | . . . . . Sneak Attacks . | . . . . . Combat Hostiles . | . . . . . Follow-up Attacks . | . . . . . Damage Inflicted 382 | . 17 . . 365 Guns 66 | . 11 . . 55 Cannons . | . . . . . Explosions 302 | . . . . 302 Melee . | . . . . . Ramming 14 | . 6 . . 8 Kinetic 66 | . 11 . . 55 Thermal . | . . . . . Explosive 302 | . . . . 302 Electromagnetic . | . . . . . Impact . | . . . . . Slashing . | . . . . . Piercing . | . . . . . Highest Corruption . | . . . . . Average Corruption . | . . . . . Corruption Purged . | . . . . . Corruption Blocked . | . . . . . Overload Shots . | . . . . . Overflow Damage . | . . . . . Projectiles . | . . . . . Explosions . | . . . . . Melee . | . . . . . Knockbacks . | . . . . . Impact . | . . . . . Kinetic . | . . . . . Secondary . | . . . . . Self-Inflicted Damage 46 | . . . . 46 Shots 2 | . . . . 2 Rammed . | . . . . . Targets Rammed 5 | . 1 . . 4 Kicked 5 | . 1 . . 4 Crushed . | . . . . . Highest Temperature . | . . . . . Average Temperature . | . . . . . Received Heat Transfer . | . . . . . Siege Activations . | . . . . . Robots Corrupted . | . . . . . Combat Hostiles . | . . . . . Parts Fried . | . . . . . Impact Corruptions . | . . . . . Robots Melted . | . . . . . Combat Hostiles . | . . . . . Parts Melted . | . . . . . Heat Transferred . | . . . . . Parts Sabotaged . | . . . . . Parts Stolen . | . . . . . Parts Stripped . | . . . . . Power Chain Reactions . | . . . . . Alert | -11 -10 -10 -10 -9 ------- Run | Yrd Mat Min Exi Min Peak Influence 42 | . 20 7 . 42 Initial 7 | . . 7 . . Average 2 | . 11 7 . 12 Maximum Alert Level . | . . . . . Low Security (%) 100 | 100 100 100 . 100 Level 1 . | . . . . . Level 2 . | . . . . . Level 3 . | . . . . . Level 4 . | . . . . . Level 5 . | . . . . . High Security . | . . . . . Max Security . | . . . . . Squads Dispatched 1 | . 1 . . . Investigation . | . . . . . Extermination . | . . . . . Reinforcement 1 | . 1 . . . Assault . | . . . . . Garrison . | . . . . . Intercept . | . . . . . Searches Triggered . | . . . . . Construction Impeded . | . . . . . Haulers Reinforced . | . . . . . Active Scanning Responses . | . . . . . Cargo Convoy Interrupts . | . . . . . Stealth | -11 -10 -10 -10 -9 --------- Run | Yrd Mat Min Exi Min Distress Signals . | . . . . . Communications Jammed . | . . . . . Distress Signals . | . . . . . Times Spotted 12 | . 3 . . 9 Peak Tracking Total 8 | . 2 . . 8 Tactical Retreats . | . . . . . Traps | -11 -10 -10 -10 -9 ------- Run | Yrd Mat Min Exi Min Traps Triggered . | . . . . . Indirectly . | . . . . . Trap Hack Attempts . | . . . . . Triggered . | . . . . . Disarmed . | . . . . . Reprogrammed . | . . . . . Reused . | . . . . . Traps Extracted . | . . . . . Installed . | . . . . . Triggered . | . . . . . Machines | -11 -10 -10 -10 -9 ---------- Run | Yrd Mat Min Exi Min Machines Disabled 1 | . . . . 1 Max in Single Turn 1 | . . . . 1 Machines Repaired . | . . . . . Machines Dismantled . | . . . . . Machines Sabotaged . | . . . . . Overloaded Fab Kills . | . . . . . Hacking | -11 -10 -10 -10 -9 --------- Run | Yrd Mat Min Exi Min Machines Accessed 3 | . 1 . 2 . Terminals 1 | . 1 . . . Fabricators . | . . . . . Repair Stations . | . . . . . Recycling Units . | . . . . . Scanalyzers . | . . . . . Garrison Access . | . . . . . Total Hacks 3 | . 1 . 2 . Successful 3 | . 1 . 2 . Failed . | . . . . . Catastrophic . | . . . . . Database Lockouts . | . . . . . Manual 1 | . . . 1 . Terminals 1 | . 1 . . . Fabricators . | . . . . . Repair Stations . | . . . . . Recycling Units . | . . . . . Scanalyzers . | . . . . . Garrison Access . | . . . . . Terminal Hacks 3 | . 1 . 2 . Record 1 | . . . 1 . Prototype ID Bank 1 | . 1 . . . Derelict Proto ID Bank 1 | . . . 1 . Fabricator Hacks . | . . . . . Repair Station Hacks . | . . . . . Recycling Unit Hacks . | . . . . . Scanalyzer . | . . . . . Garrison Access Hacks . | . . . . . Unauthorized Hacks . | . . . . . Terminals . | . . . . . Fabricators . | . . . . . Repair Stations . | . . . . . Recycling Units . | . . . . . Scanalyzers . | . . . . . Garrison Access . | . . . . . Data Cores Recovered . | . . . . . Used . | . . . . . Hacking Detections . | . . . . . Full Trace Events . | . . . . . Feedback Events . | . . . . . Feedback Blocked . | . . . . . Robot Schematics Acquired . | . . . . . Robots Built . | . . . . . Authchips . | . . . . . Time . | . . . . . Total Robot Build Rating . | . . . . . Part Schematics Acquired . | . . . . . Parts Built . | . . . . . Authchips . | . . . . . Time . | . . . . . Total Part Build Rating . | . . . . . Parts Repaired . | . . . . . Time . | . . . . . Parts Recycled . | . . . . . Recycled Matter . | . . . . . Retrieved Matter . | . . . . . Retrieved Components . | . . . . . Parts Scanalyzed . | . . . . . Part Schematics Acquired . | . . . . . Parts Damaged . | . . . . . Bothacking | -11 -10 -10 -10 -9 ------------ Run | Yrd Mat Min Exi Min Used RIF Installer . | . . . . . Robots Hacked . | . . . . . Non-combat . | . . . . . Combat . | . . . . . Robot Hacks Applied . | . . . . . Relay Couplers Released . | . . . . . Fabnet Peak Effective % . | . . . . . Robots Rewired . | . . . . . Allies Hacked . | . . . . . Hacks Repelled . | . . . . . Allies | -11 -10 -10 -10 -9 -------- Run | Yrd Mat Min Exi Min Total Allies . | . . . . . Largest Group . | . . . . . Highest-Rated Group . | . . . . . Highest-Rated Ally . | . . . . . Total Orders . | . . . . . Ally Attacks . | . . . . . Total Damage . | . . . . . Kills . | . . . . . Allies Corrupted . | . . . . . Allies Melted . | . . . . . Intel | -11 -10 -10 -10 -9 ------- Run | Yrd Mat Min Exi Min Robot Analysis Total . | . . . . . Derelict Logs Recovered 1 | . . . . 1 Drone Launches . | . . . . . Drone Recoveries . | . . . . . Exploration | -11 -10 -10 -10 -9 ------------- Run | Yrd Mat Min Exi Min Turns Passed 1684 | 1139 130 52 267 96 Spaces Moved 754 | 322 92 44 222 74 Core 26 | 2 . . . 24 Treads . | . . . . . Legs 728 | 320 92 44 222 50 Wheels . | . . . . . Hover . | . . . . . Flight . | . . . . . Fastest Speed 50 | 50 120 120 120 50 Average Speed 117 | 119 120 120 120 97 Slowest Speed 120 | 120 120 120 120 120 Overloaded Moves . | . . . . . Propulsion Burnouts . | . . . . . Robots Hopped . | . . . . . Cave-ins Triggered . | . . . . . Exploration Rate (%) 31 | 41 17 18 61 21 Regions Visited 4 Branch Regions 3 Pre-discovered Areas 1 | . . . . 1 Known Exits Taken . | . . . . . Unknown Exits Taken 4 | 1 1 1 1 . Scrap Searched . | . . . . . Spaces Dug . | . . . . . Terrain Destroyed 40 | . . . . 40 Melee . | . . . . . Projectile . | . . . . . AOE 40 | . . . . 40 Terrain Rammed . | . . . . . Walls Destroyed . | . . . . . Machines Disabled . | . . . . . Actions | -11 -10 -10 -10 -9 --------- Run | Yrd Mat Min Exi Min Total 1528 | 1073 105 43 222 85 Wait 755 | 747 8 . . . Move 750 | 321 91 43 221 74 Hop . | . . . . . Pick Up 1 | . . . 1 . Fast Attach 6 | 5 1 . . . Attach . | . . . . . Detach 1 | . 1 . . . Swap . | . . . . . Drop . | . . . . . Fire 10 | . 3 . . 7 Melee . | . . . . . Ram . | . . . . . Kick 5 | . 1 . . 4 Crush . | . . . . . Escape Stasis . | . . . . . Rewire . | . . . . . Trap . | . . . . . Miscellaneous . | . . . . . Route ------- -11/Scrapyard -10/Materials -10/Mines -10/Exiles -9/Mines History --------- Turn | Location | Event 755 | -11/Scrapyard | Discovered new exit (range 16) 1140 | -11/Scrapyard | Entered Materials 1141 | -10/Materials | Build established: Mutant 1157 | -10/Materials | Discovered new exit (range 15) 1270 | -10/Materials | Entered Mines 1298 | -10/Mines | A weapon hastily lodged in a ceiling crevice suddenly fell to the ground 1316 | -10/Mines | Deemed a non-threat by the Exiles lab entrance 1317 | -10/Mines | Discovered new exit (range 5) 1322 | -10/Mines | Entered Exiles 1351 | -10/Exiles | Met 8R-AWN 1372 | -10/Exiles | Met EX-HEX 1406 | -10/Exiles | Met EX-BIN 1423 | -10/Exiles | Aligned with FarCom system 1424 | -10/Exiles | Given EX-Vault access code 1453 | -10/Exiles | Opened EX-Vault 1465 | -10/Exiles | Found XL Autogun Array 1491 | -10/Exiles | Warned to stay clear of 0b10 Research branches 1531 | -10/Exiles | Met EX-DEC 1575 | -10/Exiles | Discovered new exit (range 14) 1589 | -10/Exiles | Left Exiles lab with XL Autogun Array 1589 | -10/Exiles | Entered Mines 1606 | -9/Mines | Assembled infested the area 1611 | -9/Mines | Assisted by a Guerilla fighting off Assembled 1614 | -9/Mines | Learned location of Storage (-9) 1670 | -9/Mines | Core integrity fell below 50% 1684 | -9/Mines | Core integrity fell below 20% 1685 | -9/Mines | Destroyed by as-19097 with Assembled Rifle Last Messages --------------- RA-WYF(h) shuts down. as-04810 destroyed. RA-WYF(h) knocked back. as-06621 destroyed. as-95015 destroyed. Destroyed Asb. F-torch. RA-WYF(h) destroyed. as-73647 destroyed. Grenade Launcher destroyed. The unstable cave ceiling collapses. Kicked as-19097. Assault Rifle destroyed. Kicked as-25355. as-25355 destroyed. Acquired 3 matter. Acquired 2 matter. Ion Engine destroyed. Aluminum Leg destroyed. Acquired 18 matter. The unstable cave ceiling collapses. Map ----- +----------------------------------------------------+ | ???????????????????????????????????????????????? | | ???????????????????????????????????????????????? | | ???????????????????????????????????????????????? | | ???????????????????????????????????????????????? | | ???????????????????????????????????????????????? | | ???????????????????????????????????????????????? | | ???????????????????????????#???????????????????? | | ??????????????????????????? ??????????????????? | | ??????????????????????????? ??????????????????? | | ??????????????????????????? ??d???????????????? | | ?????????????????????????? # ?????????????????? | | ?????????????????????????? ?????????????????? | | ?????????????????????????? ??????????????????? | | ?????????????????????????? ??????????????????? | | ?????????????????????????? #??????????????????? | | ?????????????????????????? #??????????????????? | | ?????????????????????????? #??????????????????? | | ???????????????######??### ???????????????????? | | ???????????????? #??# ????????????????????? | | ????????????????? #??# #????????????????????? | | ?????????????????# #??# #????????????????????? | | ?????????????????# #?## #????????????????????? | | ??????#??????????# ### ##???????????????????? | | ?????## ???????# #???????????????????? | | ?????# ###### a #???????????????????? | | ????# < a @ #???????????????????? | | ???# """" ##???????????????????? | | ??? ## ##### """" ##????????????????????? | | ????????????????# "a##?????????????????????? | | ???????????????## #??????????????????????? | | ????????????#### ## #??????????????????????? | | ????????????# # #??????????????????????? | | ????????????# # # ##?????????????????????? | | ???????####?# # # ## #?????????????????????? | | ??????## ### # #?????????????????????? | | ??????# ## ##?????????????????????? | | ?????## #### #??????????????????????? | | ????## #??????????????????????? | | ????# """ ### # ### ##??????????????????????? | | ????# """ #############???????????????????????? | | ????# """ #??????????????????????????? | | ????## #??????????????????????????? | | ?????## ####### ##??????###????????????????? | | ??????## #???## ####### ####?????????????? | | ???????## ##???# #?????????????? | | ????????####????# #?????????????? | | ????????????????## ### ##?????????????? | | ?????????????????### ##???????????????????? | | ???????????????????## #????????????????????? | | ????????????????????# #????????????????????? | +----------------------------------------------------+ Best States ------------- Heat Dissipation 25 Energy Generation 10 Energy Capacity 250 Matter Stores 300 Matter Capacity 300 Sight Range 16 Terrain Scan Density 10 Evasion (%) 55 Item Schematics ----------------- None Robot Schematics ------------------ None Fabricated ------------ Nothing Alien Tech Used ----------------- None Achievements -------------- None Challenges ------------ None Game ------ Seed UltimateTractorAnalyzer Manual? 0 Play Time 00:07:27 Cumulative 33.7 hours Start 2024.07.15 @ 22:39:16 End 2024.07.15 @ 22:45:32 Sessions 1 Manual Loads 0 Difficulty Rogue Special Mode None Game No. 71 Rogue 5 Adventurer 66 Explorer 0 Win Type - Total 0 Types 0/0/0/0/0/0/0/0/0 Lore% 26 Gallery% 30 Achievement% 29 Wizard Run 0 Options --------- Layout 1 ASCII 0 Keyboard 0 Movement Mouse Keybinds 0 Fullscreen 1 Font 32/SmallcapsGlow Map View 50x35 Zoom Use 0% Tactical HUD 0 Map Filters NONE Filters NONE Steam 1 RUN: bfb69a57-b33e-4957-a7d9-74b61961c850